[Event "December 19 Early 2023"]
[Site "https://www.chess.com"]
[Date "2023.12.19"]
[Round "7"]
[White "Tokhirjonova, Gulrukhbegim"]
[Black "Yeletsky, Ivan"]
[Result "0-1"]
[Board "44"]
[TimeControl "180+1"]
[WhiteFideId "14203626"]
[BlackFideId "24180327"]
[WhiteElo "2265"]
[BlackElo "2379"]
[WhiteTeam "USA"]
[BlackTeam "RUS"]
[WhiteClock "0:00:04"]
[BlackClock "0:00:57"]

1. Nf3 {[%clk 0:02:52]}  c5 {[%clk 0:02:58]} 2. e4 {[%clk 0:02:49]}  g6 {[%clk 0:02:58]} 3. Nc3 {[%clk 0:02:49]}  Bg7 {[%clk 0:02:57]} 4. Bc4 {[%clk 0:02:49]}  Nc6 {[%clk 0:02:56]} 5. d3 {[%clk 0:02:49]}  d6 {[%clk 0:02:55]} 6. Ng5 {[%clk 0:02:45]}  e6 {[%clk 0:02:50]} 7. O-O {[%clk 0:02:43]}  h6 {[%clk 0:02:46]} 8. Nf3 {[%clk 0:02:42]}  Nge7 {[%clk 0:02:40]} 9. a4 {[%clk 0:02:41]}  a6 {[%clk 0:02:40]} 10. Bf4 {[%clk 0:02:38]}  g5 {[%clk 0:02:37]} 11. Bg3 {[%clk 0:02:36]}  O-O {[%clk 0:02:28]} 12. h4 {[%clk 0:02:26]}  g4 {[%clk 0:02:17]} 13. Nh2 {[%clk 0:02:22]}  d5 {[%clk 0:02:18]} 14. Ba2 {[%clk 0:02:20]}  f5 {[%clk 0:02:18]} 15. exd5 {[%clk 0:02:11]}  exd5 {[%clk 0:02:15]} 16. f3 {[%clk 0:02:11]}  f4 {[%clk 0:02:08]} 17. Be1 {[%clk 0:02:08]}  g3 {[%clk 0:02:08]} 18. Ng4 {[%clk 0:02:06]}  h5 {[%clk 0:01:42]} 19. Nf2 {[%clk 0:01:44]}  Bd4 {[%clk 0:01:34]} 20. Ne4 {[%clk 0:01:32]}  Kg7 {[%clk 0:01:27]} 21. Ng5 {[%clk 0:01:31]}  Nf5 {[%clk 0:01:24]} 22. c3 {[%clk 0:01:25]}  Be3 {[%clk 0:01:23]} 23. Kh1 {[%clk 0:01:15]}  gxf2 {[%clk 0:01:20]} 24. Bxf2 {[%clk 0:01:15]}  Bxf2 {[%clk 0:01:21]} 25. Rxf2 {[%clk 0:01:15]}  Nxh4 {[%clk 0:01:22]} 26. Nh3 {[%clk 0:01:14]}  Bxh3 {[%clk 0:01:17]} 27. gxh3 {[%clk 0:01:15]}  Kh7 {[%clk 0:01:15]} 28. d4 {[%clk 0:01:06]}  c4 {[%clk 0:01:15]} 29. Bb1+ {[%clk 0:01:03]}  Kh8 {[%clk 0:01:14]} 30. Qc2 {[%clk 0:01:01]}  Qc7 {[%clk 0:01:01]} 31. Qd2 {[%clk 0:00:44]}  Rae8 {[%clk 0:01:00]} 32. Bc2 {[%clk 0:00:42]}  Qd7 {[%clk 0:00:58]} 33. Kh2 {[%clk 0:00:39]}  Re3 {[%clk 0:00:57]} 34. Raf1 {[%clk 0:00:39]}  Rg8 {[%clk 0:00:57]} 35. Re2 {[%clk 0:00:04]}  Rg3 {[%clk 0:00:57]} 0-1

[Event "December 19 Early 2023"]
[Site "https://www.chess.com"]
[Date "2023.12.19"]
[Round "7"]
[White "Kezin, Roman"]
[Black "Manukyan, Sargis A."]
[Result "0-1"]
[Board "46"]
[TimeControl "180+1"]
[WhiteFideId "24124621"]
[BlackFideId "13303970"]
[WhiteElo "2492"]
[BlackElo "2186"]
[WhiteTeam "RUS"]
[BlackTeam "ARM"]
[WhiteClock "0:00:00"]
[BlackClock "0:00:33"]

1. e4 {[%clk 0:02:59]}  c5 {[%clk 0:03:00]} 2. a4 {[%clk 0:02:59]}  d6 {[%clk 0:02:59]} 3. Nf3 {[%clk 0:02:42]}  Nf6 {[%clk 0:02:57]} 4. Bb5+ {[%clk 0:02:43]}  Bd7 {[%clk 0:02:57]} 5. Qe2 {[%clk 0:02:42]}  e6 {[%clk 0:02:57]} 6. O-O {[%clk 0:02:41]}  Be7 {[%clk 0:02:57]} 7. c3 {[%clk 0:02:41]}  O-O {[%clk 0:02:58]} 8. d4 {[%clk 0:02:41]}  cxd4 {[%clk 0:02:58]} 9. cxd4 {[%clk 0:02:42]}  d5 {[%clk 0:02:58]} 10. e5 {[%clk 0:02:42]}  Bxb5 {[%clk 0:02:57]} 11. axb5 {[%clk 0:02:40]}  Ne4 {[%clk 0:02:57]} 12. Ne1 {[%clk 0:02:23]}  f6 {[%clk 0:02:53]} 13. f3 {[%clk 0:02:13]}  Ng5 {[%clk 0:02:52]} 14. Nd3 {[%clk 0:02:12]}  f5 {[%clk 0:02:45]} 15. Nc5 {[%clk 0:01:39]}  b6 {[%clk 0:02:25]} 16. Nb7 {[%clk 0:01:39]}  Qd7 {[%clk 0:02:22]} 17. Nd6 {[%clk 0:01:37]}  Nf7 {[%clk 0:02:19]} 18. Nxf7 {[%clk 0:01:36]}  Rxf7 {[%clk 0:02:20]} 19. Nc3 {[%clk 0:01:36]}  Qb7 {[%clk 0:02:08]} 20. Bd2 {[%clk 0:01:31]}  Nd7 {[%clk 0:02:05]} 21. Ra6 {[%clk 0:01:30]}  Nb8 {[%clk 0:02:03]} 22. Ra4 {[%clk 0:01:29]}  a5 {[%clk 0:01:59]} 23. bxa6 {[%clk 0:01:29]}  Rxa6 {[%clk 0:01:59]} 24. Rxa6 {[%clk 0:01:24]}  Nxa6 {[%clk 0:01:49]} 25. Ra1 {[%clk 0:01:19]}  Nb4 {[%clk 0:01:42]} 26. Nb5 {[%clk 0:01:17]}  Nc6 {[%clk 0:01:42]} 27. Nd6 {[%clk 0:00:58]}  Bxd6 {[%clk 0:01:31]} 28. exd6 {[%clk 0:00:59]}  Qd7 {[%clk 0:01:30]} 29. Bf4 {[%clk 0:00:47]}  Nxd4 {[%clk 0:01:28]} 30. Qd3 {[%clk 0:00:28]}  Nb5 {[%clk 0:01:28]} 31. Be5 {[%clk 0:00:16]}  Nxd6 {[%clk 0:01:27]} 32. Ra8+ {[%clk 0:00:16]}  Rf8 {[%clk 0:01:27]} 33. Rxf8+ {[%clk 0:00:16]}  Kxf8 {[%clk 0:01:28]} 34. Qa3 {[%clk 0:00:16]}  Ke7 {[%clk 0:01:28]} 35. Bxg7 {[%clk 0:00:11]}  Kf7 {[%clk 0:01:27]} 36. Bd4 {[%clk 0:00:10]}  Nc4 {[%clk 0:01:27]} 37. Qb4 {[%clk 0:00:11]}  e5 {[%clk 0:01:27]} 38. Bf2 {[%clk 0:00:11]}  Qc6 {[%clk 0:01:24]} 39. b3 {[%clk 0:00:10]}  Nb2 {[%clk 0:01:23]} 40. Qd2 {[%clk 0:00:10]}  Nc4 {[%clk 0:01:01]} 41. bxc4 {[%clk 0:00:10]}  dxc4 {[%clk 0:01:02]} 42. Qc3 {[%clk 0:00:08]}  Ke6 {[%clk 0:01:02]} 43. h3 {[%clk 0:00:03]}  b5 {[%clk 0:01:02]} 44. Kh2 {[%clk 0:00:02]}  f4 {[%clk 0:01:02]} 45. Be1 {[%clk 0:00:02]}  Qc5 {[%clk 0:01:01]} 46. Qa5 {[%clk 0:00:02]}  Kd5 {[%clk 0:01:00]} 47. Qd8+ {[%clk 0:00:02]}  Qd6 {[%clk 0:01:00]} 48. Qg8+ {[%clk 0:00:03]}  Kc6 {[%clk 0:00:57]} 49. Qxh7 {[%clk 0:00:02]}  b4 {[%clk 0:00:58]} 50. Qe4+ {[%clk 0:00:02]}  Kb5 {[%clk 0:00:58]} 51. Qb7+ {[%clk 0:00:02]}  Ka4 {[%clk 0:00:56]} 52. Qa7+ {[%clk 0:00:01]}  Kb3 {[%clk 0:00:56]} 53. Qb7 {[%clk 0:00:01]}  c3 {[%clk 0:00:57]} 54. Qe4 {[%clk 0:00:01]}  c2 {[%clk 0:00:55]} 55. Bxb4 {[%clk 0:00:01]}  Qxb4 {[%clk 0:00:54]} 56. Qd3+ {[%clk 0:00:01]}  Kb2 {[%clk 0:00:53]} 57. Qe2 {[%clk 0:00:01]}  Kb1 {[%clk 0:00:52]} 58. Qd3 {[%clk 0:00:01]}  Kb2 {[%clk 0:00:46]} 59. Qe2 {[%clk 0:00:01]}  Qc5 {[%clk 0:00:41]} 60. h4 {[%clk 0:00:01]}  Qc6 {[%clk 0:00:38]} 61. h5 {[%clk 0:00:01]}  Ka1 {[%clk 0:00:38]} 62. Qxe5+ {[%clk 0:00:01]}  Ka2 {[%clk 0:00:36]} 63. Qe2 {[%clk 0:00:00]}  Qc5 {[%clk 0:00:33]} 0-1

[Event "December 19 Early 2023"]
[Site "https://www.chess.com"]
[Date "2023.12.19"]
[Round "7"]
[White "Dragun, Kamil"]
[Black "Domingo Nunez, Alejandro"]
[Result "1-0"]
[Board "48"]
[TimeControl "180+1"]
[WhiteFideId "1134167"]
[BlackFideId "22245561"]
[WhiteElo "2551"]
[BlackElo "2252"]
[WhiteTeam "POL"]
[BlackTeam "ESP"]
[WhiteClock "0:00:34"]
[BlackClock "0:01:19"]

1. d4 {[%clk 0:03:00]}  Nf6 {[%clk 0:02:47]} 2. c4 {[%clk 0:03:01]}  g6 {[%clk 0:02:47]} 3. Nc3 {[%clk 0:03:01]}  Bg7 {[%clk 0:02:48]} 4. e4 {[%clk 0:03:01]}  d6 {[%clk 0:02:49]} 5. Be2 {[%clk 0:03:01]}  O-O {[%clk 0:02:49]} 6. Be3 {[%clk 0:03:02]}  e5 {[%clk 0:02:45]} 7. d5 {[%clk 0:03:01]}  Na6 {[%clk 0:02:46]} 8. h4 {[%clk 0:03:01]}  Nc5 {[%clk 0:02:47]} 9. Qc2 {[%clk 0:03:02]}  a5 {[%clk 0:02:46]} 10. h5 {[%clk 0:02:59]}  Nxh5 {[%clk 0:02:35]} 11. Bxh5 {[%clk 0:02:56]}  gxh5 {[%clk 0:02:36]} 12. Rxh5 {[%clk 0:02:47]}  Qe8 {[%clk 0:02:36]} 13. Bxc5 {[%clk 0:02:20]}  f5 {[%clk 0:02:16]} 14. Rh2 {[%clk 0:01:57]}  dxc5 {[%clk 0:02:16]} 15. Nf3 {[%clk 0:01:48]}  Qg6 {[%clk 0:02:10]} 16. Nh4 {[%clk 0:01:37]}  Qg4 {[%clk 0:02:09]} 17. Qe2 {[%clk 0:01:29]}  Qg5 {[%clk 0:01:58]} 18. exf5 {[%clk 0:01:21]}  Bxf5 {[%clk 0:01:54]} 19. Nxf5 {[%clk 0:01:22]}  Rxf5 {[%clk 0:01:54]} 20. Ne4 {[%clk 0:01:21]}  Qf4 {[%clk 0:01:53]} 21. g3 {[%clk 0:01:20]}  Qf3 {[%clk 0:01:50]} 22. Qxf3 {[%clk 0:01:18]}  Rxf3 {[%clk 0:01:51]} 23. Ke2 {[%clk 0:01:18]}  Rf5 {[%clk 0:01:48]} 24. Nxc5 {[%clk 0:01:16]}  b5 {[%clk 0:01:33]} 25. cxb5 {[%clk 0:00:56]}  e4 {[%clk 0:01:33]} 26. Rd1 {[%clk 0:00:55]}  Re8 {[%clk 0:01:32]} 27. Rh4 {[%clk 0:00:52]}  e3 {[%clk 0:01:31]} 28. fxe3 {[%clk 0:00:50]}  Rg5 {[%clk 0:01:31]} 29. Kf3 {[%clk 0:00:37]}  Be5 {[%clk 0:01:29]} 30. Ne6 {[%clk 0:00:35]}  Rf5+ {[%clk 0:01:19]} 31. Ke4 {[%clk 0:00:34]} 1-0

[Event "December 19 Early 2023"]
[Site "https://www.chess.com"]
[Date "2023.12.19"]
[Round "7"]
[White "Saravana, Krishnan P."]
[Black "Gabrielian, Artur"]
[Result "0-1"]
[Board "52"]
[TimeControl "180+1"]
[WhiteFideId "5018382"]
[BlackFideId "4131002"]
[WhiteElo "2167"]
[BlackElo "2441"]
[WhiteTeam "IND"]
[BlackTeam "RUS"]
[WhiteClock "0:00:05"]
[BlackClock "0:00:03"]

1. e4 {[%clk 0:02:59]}  c5 {[%clk 0:02:59]} 2. Nf3 {[%clk 0:02:59]}  d6 {[%clk 0:03:00]} 3. d4 {[%clk 0:02:57]}  cxd4 {[%clk 0:03:00]} 4. Nxd4 {[%clk 0:02:57]}  Nf6 {[%clk 0:03:00]} 5. Nc3 {[%clk 0:02:57]}  Nc6 {[%clk 0:03:01]} 6. Bc4 {[%clk 0:02:53]}  e6 {[%clk 0:02:58]} 7. Bb3 {[%clk 0:02:53]}  Be7 {[%clk 0:02:55]} 8. O-O {[%clk 0:02:52]}  O-O {[%clk 0:02:55]} 9. Kh1 {[%clk 0:02:52]}  Bd7 {[%clk 0:02:50]} 10. f4 {[%clk 0:02:52]}  Nxd4 {[%clk 0:02:50]} 11. Qxd4 {[%clk 0:02:51]}  Bc6 {[%clk 0:02:50]} 12. Be3 {[%clk 0:02:51]}  Ng4 {[%clk 0:02:32]} 13. Bg1 {[%clk 0:02:48]}  Bf6 {[%clk 0:02:32]} 14. Qd1 {[%clk 0:02:46]}  Bxc3 {[%clk 0:02:31]} 15. bxc3 {[%clk 0:02:37]}  Nf6 {[%clk 0:02:30]} 16. e5 {[%clk 0:02:30]}  dxe5 {[%clk 0:02:27]} 17. fxe5 {[%clk 0:02:24]}  Qxd1 {[%clk 0:02:25]} 18. Raxd1 {[%clk 0:02:24]}  Ne4 {[%clk 0:02:22]} 19. Bd4 {[%clk 0:02:22]}  b5 {[%clk 0:02:01]} 20. Rd3 {[%clk 0:02:16]}  a5 {[%clk 0:01:59]} 21. a3 {[%clk 0:02:14]}  Rfc8 {[%clk 0:01:38]} 22. Rf4 {[%clk 0:02:00]}  a4 {[%clk 0:01:27]} 23. Ba2 {[%clk 0:01:59]}  Bd5 {[%clk 0:01:28]} 24. Bb1 {[%clk 0:01:46]}  Rc4 {[%clk 0:01:17]} 25. Ba2 {[%clk 0:01:44]}  Rc7 {[%clk 0:01:07]} 26. Bxd5 {[%clk 0:01:26]}  exd5 {[%clk 0:01:07]} 27. Kg1 {[%clk 0:01:08]}  Rc6 {[%clk 0:01:01]} 28. Rf1 {[%clk 0:01:02]}  h5 {[%clk 0:00:59]} 29. Rb1 {[%clk 0:01:02]}  Rb8 {[%clk 0:00:58]} 30. Kf1 {[%clk 0:01:01]}  Kf8 {[%clk 0:00:56]} 31. Ke2 {[%clk 0:00:59]}  Ke7 {[%clk 0:00:56]} 32. Rb4 {[%clk 0:00:58]}  Ke6 {[%clk 0:00:54]} 33. Rh3 {[%clk 0:00:53]}  g6 {[%clk 0:00:54]} 34. Rf3 {[%clk 0:00:53]}  Rc4 {[%clk 0:00:53]} 35. Kd3 {[%clk 0:00:52]}  Rxb4 {[%clk 0:00:52]} 36. cxb4 {[%clk 0:00:48]}  g5 {[%clk 0:00:48]} 37. c3 {[%clk 0:00:48]}  g4 {[%clk 0:00:47]} 38. Rf1 {[%clk 0:00:48]}  Rg8 {[%clk 0:00:45]} 39. Rf4 {[%clk 0:00:47]}  h4 {[%clk 0:00:43]} 40. Rf1 {[%clk 0:00:44]}  Rg5 {[%clk 0:00:42]} 41. Rf4 {[%clk 0:00:41]}  Rg6 {[%clk 0:00:36]} 42. Rf1 {[%clk 0:00:33]}  h3 {[%clk 0:00:26]} 43. g3 {[%clk 0:00:32]}  Ng5 {[%clk 0:00:24]} 44. Ke3 {[%clk 0:00:29]}  Nf3 {[%clk 0:00:22]} 45. Rf2 {[%clk 0:00:29]}  Kf5 {[%clk 0:00:20]} 46. Kd3 {[%clk 0:00:27]}  Re6 {[%clk 0:00:19]} 47. Ke3 {[%clk 0:00:26]}  Kg5 {[%clk 0:00:19]} 48. Kd3 {[%clk 0:00:26]}  Kg6 {[%clk 0:00:18]} 49. Ke3 {[%clk 0:00:26]}  Kh5 {[%clk 0:00:16]} 50. Kf4 {[%clk 0:00:25]}  Rg6 {[%clk 0:00:14]} 51. Kf5 {[%clk 0:00:24]}  Kh6 {[%clk 0:00:11]} 52. Be3+ {[%clk 0:00:24]}  Kh7 {[%clk 0:00:11]} 53. Bf4 {[%clk 0:00:24]}  Rc6 {[%clk 0:00:09]} 54. Kxg4 {[%clk 0:00:23]}  Ne1 {[%clk 0:00:08]} 55. e6 {[%clk 0:00:21]}  fxe6 {[%clk 0:00:08]} 56. Be5 {[%clk 0:00:21]}  Nd3 {[%clk 0:00:07]} 57. Rf7+ {[%clk 0:00:20]}  Kg8 {[%clk 0:00:07]} 58. Rg7+ {[%clk 0:00:21]}  Kf8 {[%clk 0:00:08]} 59. Bf6 {[%clk 0:00:21]}  e5 {[%clk 0:00:07]} 60. Kf5 {[%clk 0:00:21]}  Rxc3 {[%clk 0:00:05]} 61. Rh7 {[%clk 0:00:21]}  Ke8 {[%clk 0:00:05]} 62. Rxh3 {[%clk 0:00:19]}  Rc1 {[%clk 0:00:03]} 63. Ke6 {[%clk 0:00:18]}  Rc6+ {[%clk 0:00:03]} 64. Kf5 {[%clk 0:00:18]}  d4 {[%clk 0:00:03]} 65. Rh8+ {[%clk 0:00:17]}  Kd7 {[%clk 0:00:04]} 66. h4 {[%clk 0:00:15]}  Rc1 {[%clk 0:00:03]} 67. Ke4 {[%clk 0:00:14]}  Nf2+ {[%clk 0:00:02]} 68. Kxe5 {[%clk 0:00:12]}  Ng4+ {[%clk 0:00:02]} 69. Kf5 {[%clk 0:00:12]}  Nxf6 {[%clk 0:00:02]} 70. Kxf6 {[%clk 0:00:13]}  d3 {[%clk 0:00:03]} 71. Rh5 {[%clk 0:00:13]}  Kd6 {[%clk 0:00:03]} 72. Rh8 {[%clk 0:00:12]}  Kc7 {[%clk 0:00:04]} 73. Rh7+ {[%clk 0:00:11]}  Kc6 {[%clk 0:00:03]} 74. Ke6 {[%clk 0:00:05]}  Re1+ {[%clk 0:00:03]} 0-1

[Event "December 19 Early 2023"]
[Site "https://www.chess.com"]
[Date "2023.12.19"]
[Round "7"]
[White "Toman, Ondrej"]
[Black "Javakhadze, Zurab"]
[Result "1-0"]
[Board "56"]
[TimeControl "180+1"]
[WhiteFideId "344516"]
[BlackFideId "13603647"]
[WhiteElo "2157"]
[BlackElo "2374"]
[WhiteTeam "CZE"]
[BlackTeam "GEO"]
[WhiteClock "0:00:28"]
[BlackClock "0:00:00"]

1. d4 {[%clk 0:03:00]}  Nf6 {[%clk 0:02:59]} 2. Bg5 {[%clk 0:03:01]}  e6 {[%clk 0:02:59]} 3. Nd2 {[%clk 0:03:00]}  h6 {[%clk 0:02:58]} 4. Bxf6 {[%clk 0:02:59]}  Qxf6 {[%clk 0:02:59]} 5. c3 {[%clk 0:02:52]}  d6 {[%clk 0:02:56]} 6. e4 {[%clk 0:02:52]}  e5 {[%clk 0:02:56]} 7. Ngf3 {[%clk 0:02:45]}  Nc6 {[%clk 0:02:35]} 8. Bb5 {[%clk 0:02:35]}  Bd7 {[%clk 0:02:35]} 9. d5 {[%clk 0:02:35]}  Nb8 {[%clk 0:02:35]} 10. Qa4 {[%clk 0:02:31]}  Qd8 {[%clk 0:02:27]} 11. Nf1 {[%clk 0:02:22]}  g6 {[%clk 0:02:13]} 12. Ne3 {[%clk 0:02:20]}  h5 {[%clk 0:02:12]} 13. h3 {[%clk 0:02:06]}  Bh6 {[%clk 0:02:11]} 14. Ke2 {[%clk 0:02:05]}  a6 {[%clk 0:02:03]} 15. Bxd7+ {[%clk 0:02:04]}  Nxd7 {[%clk 0:02:04]} 16. g4 {[%clk 0:02:02]}  b5 {[%clk 0:01:27]} 17. Qc2 {[%clk 0:02:00]}  Nc5 {[%clk 0:01:28]} 18. gxh5 {[%clk 0:01:54]}  Bxe3 {[%clk 0:01:27]} 19. Kxe3 {[%clk 0:01:43]}  Rxh5 {[%clk 0:01:26]} 20. Rag1 {[%clk 0:01:40]}  Qf6 {[%clk 0:01:25]} 21. Rg4 {[%clk 0:01:30]}  Kd7 {[%clk 0:01:12]} 22. b4 {[%clk 0:01:29]}  Na4 {[%clk 0:00:59]} 23. c4 {[%clk 0:01:24]}  Nb6 {[%clk 0:00:51]} 24. Nd2 {[%clk 0:01:20]}  Qh8 {[%clk 0:00:40]} 25. Rg3 {[%clk 0:01:02]}  Qh6+ {[%clk 0:00:31]} 26. Ke2 {[%clk 0:01:02]}  Kd8 {[%clk 0:00:21]} 27. c5 {[%clk 0:00:59]}  Nd7 {[%clk 0:00:19]} 28. Rf3 {[%clk 0:00:51]}  Ke7 {[%clk 0:00:15]} 29. cxd6+ {[%clk 0:00:44]}  cxd6 {[%clk 0:00:16]} 30. Qc7 {[%clk 0:00:43]}  f5 {[%clk 0:00:12]} 31. exf5 {[%clk 0:00:38]}  gxf5 {[%clk 0:00:07]} 32. Rg1 {[%clk 0:00:37]}  Rf8 {[%clk 0:00:06]} 33. Rfg3 {[%clk 0:00:32]}  Rf7 {[%clk 0:00:00]} 34. Rg8 {[%clk 0:00:28]} 1-0

[Event "December 19 Early 2023"]
[Site "https://www.chess.com"]
[Date "2023.12.19"]
[Round "7"]
[White "Feuerstack, Aljoscha"]
[Black "Halkias, Stelios"]
[Result "1-0"]
[Board "57"]
[TimeControl "180+1"]
[WhiteFideId "4681932"]
[BlackFideId "4201809"]
[WhiteElo "2418"]
[BlackElo "2462"]
[WhiteTeam "GER"]
[BlackTeam "GRE"]
[WhiteClock "0:00:10"]
[BlackClock "0:00:00"]

1. e4 {[%clk 0:03:00]}  c5 {[%clk 0:02:55]} 2. Nf3 {[%clk 0:03:00]}  Nc6 {[%clk 0:02:56]} 3. g3 {[%clk 0:02:56]}  e6 {[%clk 0:02:55]} 4. Bg2 {[%clk 0:02:55]}  d5 {[%clk 0:02:55]} 5. d3 {[%clk 0:02:52]}  Bd6 {[%clk 0:02:55]} 6. O-O {[%clk 0:02:50]}  Nge7 {[%clk 0:02:55]} 7. Re1 {[%clk 0:02:45]}  Bc7 {[%clk 0:02:55]} 8. exd5 {[%clk 0:02:39]}  exd5 {[%clk 0:02:54]} 9. d4 {[%clk 0:02:26]}  c4 {[%clk 0:02:52]} 10. b3 {[%clk 0:02:07]}  O-O {[%clk 0:02:49]} 11. Ba3 {[%clk 0:01:58]}  Bd6 {[%clk 0:02:45]} 12. Bxd6 {[%clk 0:01:38]}  Qxd6 {[%clk 0:02:44]} 13. bxc4 {[%clk 0:01:39]}  dxc4 {[%clk 0:02:44]} 14. Nbd2 {[%clk 0:01:40]}  Be6 {[%clk 0:02:32]} 15. Ne4 {[%clk 0:01:40]}  Qc7 {[%clk 0:02:30]} 16. Neg5 {[%clk 0:01:24]}  Bd5 {[%clk 0:02:26]} 17. Nxh7 {[%clk 0:01:06]}  Bxf3 {[%clk 0:02:06]} 18. Qxf3 {[%clk 0:01:05]}  Kxh7 {[%clk 0:02:05]} 19. d5 {[%clk 0:01:06]}  Nd8 {[%clk 0:01:43]} 20. Qe4+ {[%clk 0:00:37]}  Ng6 {[%clk 0:01:41]} 21. h4 {[%clk 0:00:37]}  Kg8 {[%clk 0:01:36]} 22. h5 {[%clk 0:00:38]}  Nh8 {[%clk 0:01:36]} 23. Rab1 {[%clk 0:00:35]}  f6 {[%clk 0:01:16]} 24. Rb4 {[%clk 0:00:30]}  Nhf7 {[%clk 0:01:09]} 25. Rxc4 {[%clk 0:00:31]}  Qd7 {[%clk 0:01:09]} 26. Qh4 {[%clk 0:00:27]}  Ne5 {[%clk 0:00:50]} 27. Rce4 {[%clk 0:00:22]}  Ndf7 {[%clk 0:00:28]} 28. f4 {[%clk 0:00:20]}  Ng4 {[%clk 0:00:26]} 29. Bh3 {[%clk 0:00:20]}  Nfh6 {[%clk 0:00:23]} 30. c4 {[%clk 0:00:17]}  Rac8 {[%clk 0:00:18]} 31. Re7 {[%clk 0:00:17]}  Qf5 {[%clk 0:00:18]} 32. Rxb7 {[%clk 0:00:16]}  Rxc4 {[%clk 0:00:18]} 33. Ree7 {[%clk 0:00:16]}  Rc1+ {[%clk 0:00:16]} 34. Bf1 {[%clk 0:00:17]}  Rxf1+ {[%clk 0:00:13]} 35. Kxf1 {[%clk 0:00:18]}  Qd3+ {[%clk 0:00:13]} 36. Ke1 {[%clk 0:00:16]}  Kh8 {[%clk 0:00:12]} 37. Rxg7 {[%clk 0:00:13]}  Qe3+ {[%clk 0:00:11]} 38. Kd1 {[%clk 0:00:13]}  Nf2+ {[%clk 0:00:10]} 39. Kc2 {[%clk 0:00:13]}  Qd3+ {[%clk 0:00:10]} 40. Kb2 {[%clk 0:00:13]}  Nd1+ {[%clk 0:00:09]} 41. Kc1 {[%clk 0:00:11]}  Rc8+ {[%clk 0:00:08]} 42. Rgc7 {[%clk 0:00:11]}  Rxc7+ {[%clk 0:00:04]} 43. Rxc7 {[%clk 0:00:12]}  Ng8 {[%clk 0:00:00]} 44. Qg4 {[%clk 0:00:10]} 1-0

[Event "December 19 Early 2023"]
[Site "https://www.chess.com"]
[Date "2023.12.19"]
[Round "7"]
[White "Estrada Nieto, Julian"]
[Black "Bardyk, Artem"]
[Result "1-0"]
[Board "59"]
[TimeControl "180+1"]
[WhiteFideId "5101018"]
[BlackFideId "34349979"]
[WhiteElo "2161"]
[BlackElo "2300"]
[WhiteTeam "ESP"]
[BlackTeam "RUS"]
[WhiteClock "0:00:10"]
[BlackClock "0:00:02"]

1. e4 {[%clk 0:03:00]}  e5 {[%clk 0:02:54]} 2. Nf3 {[%clk 0:03:01]}  Nc6 {[%clk 0:02:53]} 3. Bb5 {[%clk 0:03:01]}  Nge7 {[%clk 0:02:51]} 4. Nc3 {[%clk 0:03:01]}  Ng6 {[%clk 0:02:50]} 5. O-O {[%clk 0:02:50]}  Bc5 {[%clk 0:02:50]} 6. d3 {[%clk 0:02:50]}  d6 {[%clk 0:02:46]} 7. Be3 {[%clk 0:02:49]}  Bb6 {[%clk 0:02:44]} 8. Nd5 {[%clk 0:02:49]}  O-O {[%clk 0:02:43]} 9. Nxb6 {[%clk 0:02:46]}  axb6 {[%clk 0:02:43]} 10. c3 {[%clk 0:02:43]}  f5 {[%clk 0:02:32]} 11. Bc4+ {[%clk 0:02:40]}  Kh8 {[%clk 0:02:32]} 12. Ng5 {[%clk 0:02:12]}  f4 {[%clk 0:01:59]} 13. Qh5 {[%clk 0:02:11]}  h6 {[%clk 0:01:58]} 14. Nf7+ {[%clk 0:01:59]}  Rxf7 {[%clk 0:01:57]} 15. Bxf7 {[%clk 0:01:58]}  Nf8 {[%clk 0:01:35]} 16. Bd2 {[%clk 0:01:53]}  Qf6 {[%clk 0:01:29]} 17. Bb3 {[%clk 0:01:49]}  Be6 {[%clk 0:01:29]} 18. Kh1 {[%clk 0:01:37]}  Na5 {[%clk 0:01:16]} 19. Bxe6 {[%clk 0:01:31]}  Nxe6 {[%clk 0:01:17]} 20. Qf5 {[%clk 0:01:06]}  Qe7 {[%clk 0:01:09]} 21. Qh5 {[%clk 0:01:03]}  Rf8 {[%clk 0:00:57]} 22. g3 {[%clk 0:00:50]}  Nc6 {[%clk 0:00:47]} 23. gxf4 {[%clk 0:00:48]}  Nxf4 {[%clk 0:00:36]} 24. Bxf4 {[%clk 0:00:47]}  Rxf4 {[%clk 0:00:36]} 25. f3 {[%clk 0:00:46]}  Nd8 {[%clk 0:00:35]} 26. Rg1 {[%clk 0:00:43]}  Ne6 {[%clk 0:00:36]} 27. Raf1 {[%clk 0:00:41]}  Rh4 {[%clk 0:00:30]} 28. Qf5 {[%clk 0:00:31]}  Nf4 {[%clk 0:00:28]} 29. Rg4 {[%clk 0:00:23]}  Rh5 {[%clk 0:00:24]} 30. Qc8+ {[%clk 0:00:21]}  Kh7 {[%clk 0:00:24]} 31. Rfg1 {[%clk 0:00:22]}  g6 {[%clk 0:00:19]} 32. Qxb7 {[%clk 0:00:20]}  Nxd3 {[%clk 0:00:18]} 33. R1g2 {[%clk 0:00:12]}  Nf4 {[%clk 0:00:17]} 34. Qc8 {[%clk 0:00:12]}  Nxg2 {[%clk 0:00:14]} 35. Kxg2 {[%clk 0:00:10]}  Qf7 {[%clk 0:00:15]} 36. Qd8 {[%clk 0:00:10]}  Rg5 {[%clk 0:00:06]} 37. Rxg5 {[%clk 0:00:09]}  hxg5 {[%clk 0:00:07]} 38. b3 {[%clk 0:00:10]}  Kh6 {[%clk 0:00:01]} 39. c4 {[%clk 0:00:10]}  Kh5 {[%clk 0:00:01]} 40. Qh8+ {[%clk 0:00:10]}  Qh7 {[%clk 0:00:02]} 41. Qxh7# {[%clk 0:00:10]} 1-0